[Event "1st Caplin Menchik Memorial 2022"]
[Site "London"]
[Date "2022.06.18"]
[Round "1.1"]
[White "Varney, Zoe"]
[Black "Yao, Lan"]
[Result "0-1"]
[ECO "B12"]
[WhiteElo "2046"]
[BlackElo "2276"]
[Annotator "TA"]
[PlyCount "76"]
[EventDate "2022.06.21"]
[EventType "tourn"]
[EventCountry "ENG"]
[SourceTitle "playchess.com"]
[Source "ChessBase"]
[SourceQuality "1"]
[TimeControl "5400+30"]

{[%evp 10,76,12,29,27,4,18,13,27,8,52,63,56,34,27,26,63,65,55,37,38,42,43,35,259,45,54,0,0,-24,-12,-22,-18,-109,-58,-52,-50,-54,-53,-309,-307,-360,-383,-406,-311,-416,-164,-177,-168,-408,-408,-479,-493,-679,-672,-850,-685,-683,-684,-673,-679,-680,-680,-731,-735,-899,-883,-1590,-1538]} 1. e4 {[%emt 0:00:03]} c6 {[%emt 0:00:06]} 2. d4 {[%emt 0:00:04]} d5 {[%emt 0:00:05]} 3. e5 {[%emt 0:00:03]} Bf5 {[%emt 0:00:06]} 4. Nd2 {[%emt 0:00:04]} e6 {[%emt 0:00:32]} 5. Nb3 {[%emt 0:00:07]} Nd7 {[%emt 0:00:11]} 6. Nf3 {[%emt 0:00:19]} Ne7 {[%emt 0:03:11] B12: Caro-Kann: Advance Variation.} 7. c3 {[%emt 0:04:41]} Nc8 {[%emt 0:03:41]} 8. Be3 {[%emt 0:05:29]} Be7 {[%emt 0:02:08] [#] The position is equal.} 9. Be2 $146 {[%emt 0:10:15]} ({Predecessor:} 9. Bd3 Bxd3 10. Qxd3 Ncb6 11. Na5 Qc7 12. b4 O-O 13. O-O Na4 14. Qc2 b5 15. Bg5 {0-1 (60) Farago,S (2251)-Videki,S (2428) Hungary 2009}) 9... b5 {[%emt 0:09:45]} 10. a4 {[%emt 0:13:27]} b4 {[%emt 0:03:26]} 11. a5 {[%emt 0:08:21]} bxc3 {[%emt 0:01:27]} 12. bxc3 {[%emt 0:00:14]} Qc7 {[%emt 0:07:31]} 13. O-O {[%emt 0:06:10]} O-O {[%emt 0:08:35]} 14. Ne1 {[%emt 0:02:17]} c5 {[%emt 0:07:22]} 15. g4 {[%emt 0:03:32]} Bg6 {[%emt 0:00:38]} 16. f4 {[%emt 0:00:51] f5 is the strong threat.} f5 $2 {[%emt 0:06:40]} (16... c4 $14) 17. dxc5 $2 {[%emt 0:10:08]} (17. c4 $18) 17... Bxc5 $14 {[%emt 0:04:18]} 18. Bxc5 {[%emt 0:06:09]} (18. Bd4 $14) 18... Nxc5 $11 {[%emt 0:00:06]} 19. Nd4 {[%emt 0:00:58]} Ne7 {[%emt 0:05:15]} 20. c4 {[%emt 0:02:51]} Rad8 {[%emt 0:04:59]} 21. Nb5 {[%emt 0:11:01] [#]} (21. cxd5 $11 Nxd5 22. Qc1) 21... Qd7 {[%emt 0:09:27]} (21... Qb8 $1 $17 {aiming for ...fxg4.} 22. Nd6 fxg4 23. Bxg4 Kh8) 22. g5 $15 {[%emt 0:01:23]} a6 {[%emt 0:04:28]} 23. Nd6 {[%emt 0:02:06]} Ne4 {[%emt 0:01:02]} 24. Nxe4 $4 {[%emt 0:01:19][%mdl 8192] Black converts the advantage convincingly.} (24. Qd4 $15) 24... fxe4 $19 {[%emt 0:00:14]} ({Stronger than} 24... dxe4 25. Qxd7 Rxd7 26. c5 $11) 25. Qd4 {[%emt 0:03:03]} Nf5 {[%emt 0:02:37]} 26. Qb6 {[%emt 0:00:31]} d4 {[%emt 0:00:15]} 27. Bg4 {[%emt 0:05:00]} Ra8 $2 {[%emt 0:09:44]} (27... Rb8 28. Qxa6 d3) 28. Rb1 {[%emt 0:00:49]} Rfc8 $36 {[%emt 0:00:35][%mdl 2048] Black has strong initiative.} 29. c5 $2 {[%emt 0:01:13]} (29. Ng2) 29... Rc6 {[%emt 0:00:37]} ({Weaker is} 29... d3 30. Ng2 $17) 30. Qb4 {[%emt 0:00:12]} Ne3 {[%emt 0:01:26][%csl LRf1,LRg4] Black is clearly winning.} 31. Bd1 {[%emt 0:00:35]} Nxf1 {[%emt 0:01:01]} 32. Ba4 {[%emt 0:00:12] [#]} Ne3 $1 {[%emt 0:02:04][%cal Od4d3] White must now prevent ...d3!} 33. Bxc6 {[%emt 0:00:44]} Qxc6 {[%emt 0:00:02]} 34. Qxd4 {[%emt 0:00:07]} Nd5 {[%emt 0:00:07][%cal Be3d5,Bd5f4,Bf4d3][%mdl 32]} 35. Ng2 {[%emt 0:01:25]} Rc8 {[%emt 0:00:22]} 36. Rc1 {[%emt 0:00:02]} Rb8 {[%emt 0:00:23][%cal Oe4e3] Strongly threatening ...e3!} 37. Ne3 {[%emt 0:00:21]} Nxf4 {[%emt 0:01:20]} 38. Kf2 {[%emt 0:00:58] Inhibits Ne2.} Nd3+ {[%emt 0:00:11] Weighted Error Value: White=0.76/Black=0.37} 0-1

[Event "1st Caplin Menchik Memorial 2022"]
[Site "London"]
[Date "2022.06.18"]
[Round "1.2"]
[White "Hunt, Harriet V"]
[Black "Hryshchenko, Kamila"]
[Result "1-0"]
[ECO "B06"]
[WhiteElo "2395"]
[BlackElo "2037"]
[Annotator "TA"]
[PlyCount "61"]
[EventDate "2022.06.21"]
[EventType "tourn"]
[EventCountry "ENG"]
[SourceTitle "playchess.com"]
[Source "ChessBase"]
[SourceQuality "1"]
[TimeControl "5400+30"]

{[%evp 11,61,18,57,30,45,28,21,27,37,37,35,35,122,35,35,18,86,82,97,107,71,99,158,153,169,110,117,111,254,214,225,133,287,295,381,377,384,384,375,372,352,336,373,359,328,359,459,458,556,523,514,503]} 1. e4 {[%emt 0:00:03]} g6 {[%emt 0:00:07]} 2. d4 {[%emt 0:00:09]} Bg7 {[%emt 0:00:07]} 3. Nf3 {[%emt 0:00:06]} d6 {[%emt 0:00:14]} 4. Bc4 {[%emt 0:00:17]} Nf6 {[%emt 0:00:57]} 5. Qe2 {[%emt 0:00:47]} O-O {[%emt 0:01:00]} 6. O-O {[%emt 0:03:33]} Nc6 {[%emt 0:05:10]} 7. h3 {[%emt 0:09:07] [#] B06: Modern Defence.} (7. e5 $5 {[%cal Re5f6]}) 7... h6 $146 {[%emt 0:08:35]} ({Predecessor:} 7... d5 8. exd5 Nxd5 9. c3 Qd6 10. Nbd2 Bf5 11. Ne4 Bxe4 12. Qxe4 e6 13. Bg5 Nce7 14. Rfe1 {0-1 (43) Martinez Alcantara,J (2620)-Kamsky,G (2672) Chess.com INT 2020}) 8. e5 {[%emt 0:06:33]} Nd7 {[%emt 0:19:30][%cal Rd6e5]} 9. e6 {[%emt 0:05:54] The position is equal.} fxe6 {[%emt 0:00:38]} 10. Bxe6+ {[%emt 0:01:07]} (10. Qxe6+ Kh7 11. Qe4 Nb6 $11) 10... Kh7 {[%emt 0:04:01][%cal Of8f3] White must now prevent ...Rxf3!} 11. c3 {[%emt 0:07:51]} Rf6 {[%emt 0:06:03] [#]} ({Better is} 11... Nb6 $14) 12. d5 {[%emt 0:09:32] 0x0.0022fba6bc1ddp-1022s more active pieces.} (12. Nbd2 $1 $16) 12... Nce5 {[%emt 0:09:18] Hoping for ...Nxf3+.} 13. Nh4 {[%emt 0:06:36] Threatens to win with f4.} c6 {[%emt 0:07:17]} (13... Nf8 $11 {remains equal.}) 14. f4 $16 {[%emt 0:06:45]} cxd5 {[%emt 0:10:44]} 15. Bxd5 {[%emt 0:00:43]} e6 {[%emt 0:08:51]} 16. Bb3 {[%emt 0:05:58]} Nc5 {[%emt 0:01:35]} 17. Bc2 {[%emt 0:01:30]} (17. fxe5 Rxf1+ 18. Qxf1 Qxh4 $11) 17... b6 {[%emt 0:07:18]} 18. Na3 {[%emt 0:12:24]} (18. fxe5 Rxf1+ 19. Qxf1 Qxh4 $15) (18. Rd1 $18 Ba6 19. Qe3) 18... Ba6 {[%emt 0:04:06]} 19. Nb5 {[%emt 0:00:46]} Qe7 {[%emt 0:02:32]} 20. Be3 {[%emt 0:02:18] a4 is the strong threat.} (20. fxe5 Rxf1+ 21. Qxf1 Qxh4 $19) 20... Raf8 {[%emt 0:00:16][%cal Od6d5]} 21. a4 {[%emt 0:02:14]} ({Weaker is} 21. fxe5 Rxf1+ 22. Rxf1 Rxf1+ 23. Kxf1 (23. Qxf1 Qxh4 24. a4 dxe5 $11) 23... Qxh4 $14) ({White should try} 21. b4 $18 Ncd7 22. Rf2 (22. fxe5 Rxf1+ 23. Rxf1 Qxh4 $11)) 21... Bb7 $2 {[%emt 0:01:17] This move loses the game for Black.} (21... d5 $16) 22. Rf2 {[%emt 0:03:38]} (22. fxe5 $6 Rxf1+ 23. Rxf1 Rxf1+ 24. Qxf1 Qxh4 25. exd6 (25. Nxd6 Be4 $18) 25... Be4 $18) 22... Nf7 {[%emt 0:01:20]} 23. Bd4 {[%emt 0:01:22]} e5 {[%emt 0:00:16]} 24. Bxc5 {[%emt 0:02:51]} bxc5 {[%emt 0:00:12] [#]} 25. f5 $1 {[%emt 0:00:18][%cal Rf5g6]} g5 {[%emt 0:00:56]} 26. Ng6 {[%emt 0:00:07]} Qd7 {[%emt 0:00:32]} 27. Nxf8+ {[%emt 0:00:14]} Bxf8 {[%emt 0:00:03]} 28. c4 {[%emt 0:00:34]} ({Resist} 28. Nxa7 c4 29. Qxc4 d5 $18) 28... a6 {[%emt 0:01:03]} 29. Nc3 {[%emt 0:00:06] White is clearly winning.} Kg7 {[%emt 0:00:22]} 30. Rd1 {[%emt 0:00:31]} Bc6 {[%emt 0:00:23]} 31. Be4 {[%emt 0:01:47] Weighted Error Value: White=0.16 (very precise) /Black=0.45} 1-0

[Event "1st Caplin Menchik Memorial 2022"]
[Site "London"]
[Date "2022.06.18"]
[Round "1.3"]
[White "Vidic, Teja"]
[Black "Toma, Katarzyna"]
[Result "0-1"]
[ECO "B51"]
[WhiteElo "2168"]
[BlackElo "2304"]
[Annotator "TA"]
[PlyCount "74"]
[EventDate "2022.06.21"]
[EventType "tourn"]
[EventCountry "ENG"]
[SourceTitle "playchess.com"]
[Source "ChessBase"]
[SourceQuality "1"]
[TimeControl "5400+30"]

{[%evp 17,74,-17,43,0,0,0,0,0,0,0,0,0,53,-5,0,-35,0,-29,71,-19,-19,-79,0,0,0,0,0,0,0,-125,-133,-145,-154,-206,-206,-709,-337,-445,-362,-318,-325,-805,-833,-815,-786,-1144,-994,-2037,-697,-1593,-1225,-5281,-681,-29987,-1241,-5669,-1154,-29985,-29986]} 1. e4 {[%emt 0:00:04]} c5 {[%emt 0:00:08]} 2. Nf3 {[%emt 0:00:10]} Nc6 {[%emt 0:00:12]} 3. Bb5 {[%emt 0:00:07]} d6 {[%emt 0:02:46]} 4. O-O {[%emt 0:02:41]} Bd7 {[%emt 0:01:31]} 5. c3 {[%emt 0:05:10]} a6 {[%emt 0:02:21]} 6. Bxc6 {[%emt 0:00:05]} Bxc6 {[%emt 0:00:37]} 7. Re1 {[%emt 0:00:57]} Nf6 {[%emt 0:03:03]} 8. d4 {[%emt 0:00:06]} Bxe4 {[%emt 0:08:06]} 9. Bg5 {[%emt 0:00:06]} d5 {[%emt 0:05:05] is cutting edge theory.} (9... Bg6 $11) 10. Bxf6 {[%emt 0:11:06] B51: Sicilian: Moscow Variation (3 Bb5+) without 3...Bd7.} (10. Nbd2 $5 {[%cal Rg5f6]}) 10... gxf6 {[%emt 0:00:08]} 11. dxc5 {[%emt 0:10:52][%cal Oc3c4]} e6 {[%emt 0:00:57]} 12. b4 {[%emt 0:00:15] The position is equal.} Bg7 {[%emt 0:09:25]} 13. Nbd2 {[%emt 0:01:57]} f5 {[%emt 0:05:46]} 14. Nd4 {[%emt 0:02:33] [#]} O-O $146 {[%emt 0:06:15]} (14... Qg5 $11 15. f3 Bxd4+ 16. cxd4 Rg8 $1) ({Predecessor:} 14... a5 15. f3 Bd3 16. N2b3 Bc4 17. Nxa5 Rxa5 18. bxa5 O-O 19. Qa4 Qc7 20. c6 bxc6 {1-0 (35) Mirimanian,H (2268)-Bykhovsky,A (2496) Chess.com INT 2020}) 15. f3 {[%emt 0:10:18]} (15. Qe2 $14) 15... Bd3 $11 {[%emt 0:03:19]} 16. Re3 {[%emt 0:00:38]} (16. N2b3 $5 {[%cal Rd1d3]} Bc4 17. Qd2 $15) 16... Bc4 {[%emt 0:01:29] This bishop pair is nice.} 17. f4 {[%emt 0:01:16]} b6 {[%emt 0:02:28]} (17... a5 $11 18. a3 (18. Nxc4 dxc4 19. a3 axb4 $11) 18... Qb8) 18. cxb6 {[%emt 0:11:16]} (18. Nc6 $16 Qe8 19. Nxc4 dxc4 20. Qd6 bxc5 21. Qxc5) 18... Qxb6 {[%emt 0:00:27]} 19. Rg3 {[%emt 0:00:11]} ({Much weaker is} 19. Nxc4 dxc4 20. Qd2 Rfd8 $17) (19. N2f3 $11) 19... Qc7 {[%emt 0:10:37]} ({Black should play} 19... Kh8 $1 $17 20. Kh1 Bxd4 21. Nxc4 dxc4 22. cxd4 Rfd8) 20. Qh5 {[%emt 0:09:23] Black must now prevent Qh6.} Qxf4 {[%emt 0:00:56]} 21. Nxc4 {[%emt 0:00:06]} dxc4 {[%emt 0:00:34]} 22. Rf1 {[%emt 0:01:17]} Qe5 {[%emt 0:04:44]} 23. Qg5 {[%emt 0:19:55]} (23. Nc6 $11 Qf6 24. Rf4) 23... h6 $1 $17 {[%emt 0:01:32]} 24. Qh5 {[%emt 0:00:40]} (24. Qxh6 $2 Qxg3 $3 {[%mdl 512]} 25. Qc1 Qd3 $19) 24... Rac8 {[%emt 0:03:30] Inhibits Nc6.} 25. Rff3 {[%emt 0:00:25] [#]} ({But not} 25. Qxh6 $2 Qxg3 $3 {[%mdl 512]} 26. Qc1 Bxd4+ 27. cxd4 Qg7 $19) (25. Qf3 $17 {was called for.}) 25... Kh7 $1 $19 {[%emt 0:08:43]} 26. h4 $2 {[%emt 0:01:00]} (26. Rf1) 26... Rc7 {[%emt 0:05:06]} (26... Qe1+ $142 27. Kh2 Be5) 27. Kh2 {[%emt 0:01:56]} Rd8 {[%emt 0:02:39] Strongly threatening ...Rxd4.} 28. Re3 {[%emt 0:03:13]} Qf6 {[%emt 0:00:26]} 29. Ref3 $2 {[%emt 0:00:25]} (29. Re1) 29... Rxd4 {[%emt 0:03:28]} 30. cxd4 {[%emt 0:00:07]} Qxd4 {[%emt 0:00:04] Hoping for ...Be5.} 31. Kh3 {[%emt 0:01:50]} c3 {[%emt 0:02:12]} 32. Rd3 {[%emt 0:00:08]} Qg1 {[%emt 0:00:52]} (32... Qxb4 $142 33. Rxg7+ Kxg7) 33. Rxg7+ {[%emt 0:00:44]} Kxg7 {[%emt 0:00:06]} 34. Qe2 {[%emt 0:00:48]} Kf6 {[%emt 0:04:36]} (34... Qh1+ $142 35. Kg3 Rc4 36. Qe5+ Kh7) 35. Qc2 {[%emt 0:03:06]} Qh1+ {[%emt 0:00:27]} (35... Rc4 $142 36. Qd1 {[#]} Rxh4+ $3 {[%mdl 512]} 37. Kg3 Rg4+ 38. Qxg4 Qe1+ 39. Kh3 fxg4+ 40. Kxg4 Qe4+ 41. Kh3 Qxd3+ 42. Kh2 c2 43. g4 c1=Q 44. g5+ hxg5 45. Kg2 Qe2+ 46. Kh3 Qce3#) 36. Kg3 {[%emt 0:00:04]} Qe1+ {[%emt 0:00:08]} (36... Rc4 $142 37. Kf2 Qxh4+ 38. Kf1 Qh2) 37. Kh3 {[%emt 0:00:25]} Rc4 {[%emt 0:00:10][%csl LRb4,LRh4] Weighted Error Value: White=1.60/Black=1.08} 0-1

[Event "1st Caplin Menchik Memorial 2022"]
[Site "London"]
[Date "2022.06.18"]
[Round "1.4"]
[White "Koubova, Anna Marie"]
[Black "Arakhamia-Grant, Ketevan"]
[Result "0-1"]
[ECO "A58"]
[WhiteElo "2115"]
[BlackElo "2354"]
[Annotator "TA"]
[PlyCount "56"]
[EventDate "2022.06.21"]
[EventType "tourn"]
[EventCountry "ENG"]
[SourceTitle "playchess.com"]
[Source "ChessBase"]
[SourceQuality "1"]
[TimeControl "5400+30"]

{[%evp 9,56,25,60,65,56,51,52,31,44,45,28,0,11,0,-2,-92,-67,-113,-108,-98,-79,-261,-271,-247,-187,-185,-164,-425,-426,-514,-500,-583,-552,-542,-434,-538,-439,-863,-660,-889,-885,-1055,-797,-1232,-1197,-1091,-1120,-2049,-948]} 1. d4 {[%emt 0:00:04]} Nf6 {[%emt 0:00:10]} 2. c4 {[%emt 0:00:11][%cal Bc2c4,Bc4b5,Bb5a6][%mdl 32]} c5 {[%emt 0:00:11]} 3. d5 {[%emt 0:00:39]} b5 {[%emt 0:00:12]} 4. cxb5 {[%emt 0:00:45]} a6 {[%emt 0:00:04]} 5. bxa6 {[%emt 0:01:04]} g6 {[%emt 0:00:11]} 6. Nc3 {[%emt 0:00:47] A58: Benko/Volga Gambit: Lines with 5 bxa6.} Bg7 {[%emt 0:00:07]} 7. e4 {[%emt 0:03:04]} O-O {[%emt 0:01:16]} 8. Nf3 {[%emt 0:04:26] White is slightly better.} Qa5 {[%emt 0:04:44]} 9. Nd2 {[%emt 0:13:44]} Bxa6 {[%emt 0:01:25]} 10. Bxa6 {[%emt 0:02:22]} Qxa6 {[%emt 0:02:34] [#]} 11. Qb3 $146 {[%emt 0:10:05]} ({Predecessor:} 11. a4 e6 12. Nb5 exd5 13. Nc7 Qa7 14. Nxa8 dxe4 15. a5 Qxa8 16. Nc4 d5 17. Nb6 {½-½ (36) Nikolov,M (2559)-Ivanisevic,I (2665) Skopje 2016}) 11... e6 {[%emt 0:02:10][%cal Be7e6,Be6d5][%mdl 32]} 12. Nc4 {[%emt 0:31:15] [#]} (12. Nb5 $11) 12... Nxe4 $1 $17 {[%emt 0:05:12][%mdl 64] Remove Defender, Decoy} 13. Nxe4 {[%emt 0:01:28]} (13. O-O $15 {should be considered.}) 13... exd5 {[%emt 0:00:08]} 14. Nb6 {[%emt 0:02:58]} c4 {[%emt 0:01:42]} (14... Re8 $6 15. Nxa8 Rxe4+ 16. Be3 Qxa8 17. O-O $11) 15. Qb4 {[%emt 0:02:22]} Nc6 $19 {[%emt 0:06:26]} 16. Qc5 {[%emt 0:03:54]} Rae8 {[%emt 0:05:43][%mdl 64] [#] Pin} ({Worse is} 16... dxe4 17. Nxa8 Rxa8 18. O-O $15) 17. O-O {[%emt 0:02:06]} Rxe4 {[%emt 0:03:10]} 18. Nxd7 $2 {[%emt 0:04:57]} (18. Nxd5 Bd4 19. Qd6) 18... Rd8 {[%emt 0:05:19] Black is clearly winning.} 19. Nb6 {[%emt 0:02:29]} ({Much weaker is} 19. Qxd5 Re7 20. Nc5 Rxd5 $19) 19... Qb7 {[%emt 0:24:27]} ({Don't go for} 19... Bd4 $2 20. Qxc6 Bxb6 21. Qf6 $19) 20. Na4 {[%emt 0:04:01]} Bd4 {[%emt 0:00:34]} 21. Qa3 {[%emt 0:00:27]} Qa7 {[%emt 0:15:12] Inhibits Nc5. Strongly threatening ...Ra8.} 22. Rb1 {[%emt 0:06:53]} Ne5 {[%emt 0:10:59][%cal Bc6e5,Be5d3,Bd3f2,Bf2h3][%mdl 32]} 23. b3 {[%emt 0:01:18]} (23. Be3 $142 Bxe3 24. fxe3) 23... Nd3 {[%emt 0:00:22][%cal Rd3f2]} 24. bxc4 {[%emt 0:00:25]} dxc4 {[%emt 0:01:02][%cal Rd4f2]} 25. Bg5 {[%emt 0:00:37]} Ra8 {[%emt 0:01:01] aiming for ...Rae8.} 26. Rb5 {[%emt 0:00:24]} Nxf2 {[%emt 0:01:46] Threatens to win with ...c3.} 27. Qf3 {[%emt 0:00:36] Prevents c3.} Qxa4 {[%emt 0:01:01]} 28. Rb7 {[%emt 0:00:25]} Nh3+ {[%emt 0:02:07] Black took control after the opening.  Weighted Error Value: White=1.22/Black=0.26 (precise)} 0-1

[Event "1st Caplin Menchik Memorial 2022"]
[Site "London"]
[Date "2022.06.18"]
[Round "1.5"]
[White "Dworakowska, Joanna"]
[Black "Schulze, Lara"]
[Result "1-0"]
[ECO "B67"]
[WhiteElo "2321"]
[BlackElo "2303"]
[Annotator "TA"]
[PlyCount "61"]
[EventDate "2022.06.21"]
[EventType "tourn"]
[EventCountry "ENG"]
[SourceTitle "playchess.com"]
[Source "ChessBase"]
[SourceQuality "1"]
[TimeControl "5400+30"]

{[%evp 20,60,33,6,19,0,1,0,0,0,2,-13,11,0,25,18,95,83,77,59,76,50,97,41,39,33,30,40,623,600,29989,29990,29993,29994,29994,29995,29995,29996,29996,29997,29997,29998,29999]} 1. e4 {[%emt 0:00:04]} c5 {[%emt 0:00:27]} 2. Nf3 {[%emt 0:00:15]} Nc6 {[%emt 0:00:28]} 3. d4 {[%emt 0:00:08]} cxd4 {[%emt 0:00:08]} 4. Nxd4 {[%emt 0:00:02]} Nf6 {[%emt 0:00:10]} 5. Nc3 {[%emt 0:00:02]} d6 {[%emt 0:00:10]} 6. Bg5 {[%emt 0:00:08]} e6 {[%emt 0:00:10]} 7. Qd2 {[%emt 0:00:06]} a6 {[%emt 0:00:07]} 8. O-O-O {[%emt 0:00:09]} Bd7 {[%emt 0:00:08]} 9. f3 {[%emt 0:00:09]} Nxd4 {[%emt 0:00:39]} 10. Qxd4 {[%emt 0:00:05]} Be7 {[%emt 0:00:14]} 11. h4 {[%emt 0:14:31]} Qc7 {[%emt 0:01:58] B67: Sicilian: Richter-Rauzer: 7...a6 8 0-0-0 Bd7, lines without 9 f4 Be7.} 12. h5 {[%emt 0:07:44] Hoping for h6.} h6 {[%emt 0:05:18]} 13. Bh4 {[%emt 0:01:11]} b5 {[%emt 0:10:10] The position is equal.} 14. Kb1 {[%emt 0:07:48]} Rc8 {[%emt 0:04:13] [#]} 15. Qd2 $146 {[%emt 0:11:07]} ({Predecessor:} 15. g4 d5 16. exd5 Nxd5 17. Bxe7 Nxc3+ 18. bxc3 Kxe7 19. Qb4+ Qc5 20. Bd3 Rc7 21. Be4 {½-½ (109) Omariev,M (2304)-Rogule,L (2286) Chess.com INT 2020}) 15... Bc6 {[%emt 0:12:29]} 16. Bd3 {[%emt 0:07:03]} Bb7 {[%emt 0:26:25]} 17. Ne2 {[%emt 0:15:09]} d5 {[%emt 0:03:50]} (17... Nd7 $11) 18. e5 $1 $16 {[%emt 0:05:00]} Ne4 {[%emt 0:02:14] [#]} 19. Qe1 {[%emt 0:02:30]} ({Don't play} 19. fxe4 $6 dxe4 20. Bxb5+ (20. Bxe7 exd3 21. Qxd3 Qxe7 $17) 20... axb5 $11) 19... Nc5 {[%emt 0:04:17]} 20. Nd4 {[%emt 0:02:00]} Nxd3 {[%emt 0:02:53]} (20... Bxh4 $14 21. Rxh4 O-O) 21. Rxd3 {[%emt 0:02:44]} ({White should try} 21. cxd3 $16 O-O 22. Bxe7 Qxe7 23. Qe3) 21... Bc5 $14 {[%emt 0:00:28]} 22. c3 {[%emt 0:06:03]} O-O {[%emt 0:04:13]} 23. f4 {[%emt 0:00:37] Black must now prevent Rg3.} a5 $2 {[%emt 0:03:11][%mdl 8192] [#] A mistake that costs the game.} (23... Bxd4 $14 24. Rxd4 a5) 24. Rg3 $1 $18 {[%emt 0:04:00]} Kh7 {[%emt 0:01:31] [#]} 25. Rxg7+ {[%emt 0:00:16][%mdl 512] White mates.} Kxg7 {[%emt 0:00:33]} (25... Kh8 26. Bf6) 26. Qg3+ {[%emt 0:00:09]} Kh7 {[%emt 0:00:27]} 27. Bf6 {[%emt 0:00:33][%csl Gf6][%cal Rg3g7]} Rg8 {[%emt 0:00:40]} 28. Qd3+ {[%emt 0:00:05]} Rg6 {[%emt 0:00:36]} 29. hxg6+ {[%emt 0:00:08]} fxg6 {[%emt 0:00:07] [#]} 30. Rxh6+ $3 {[%emt 0:00:09][%mdl 512]} Kxh6 {[%emt 0:00:06]} (30... Kg8 31. Qxg6+) 31. Qh3# {[%emt 0:00:40] Weighted Error Value: White=0.07 (flawless) /Black=0.80} 1-0